bitfinex/quotes_SOLUSD_20251204
["timestamp","ask_amount","ask_price","bid_price","bid_amount"]
[1764889483788,5.01500757,139.31,139.29,7.17926627]
[1764889485277,0.69,139.31,139.29,7.17926627]
[1764889488791,5.01500757,139.31,139.29,7.17926627]
[1764889489301,0.72,139.3,139.28,15.09959205]
[1764889489671,4.32500757,139.29,139.24,22.93886141]
[1764889489865,5.04500757,139.28,139.26,7.18054715]
[1764889490070,8.80994492,139.34,139.27,7.92]
[1764889490071,5.04500757,139.31,139.27,7.92]
[1764889490280,0.72,139.31,139.27,8.58]
[1764889490479,4.32500757,139.32,139.28,0.66]
[1764889490679,0.72,139.32,139.28,4.98500757]
[1764889491092,5.04500757,139.32,139.29,0.66]
[1764889491789,5.04500757,139.32,139.3,7.17875089]
[1764889495003,4.32500757,139.32,139.28,25.12807673]
[1764889495211,4.32500757,139.3,139.28,7.17978173]
[1764889495578,5.04500757,139.3,139.28,7.17978173]
[1764889496090,0.72,139.3,139.28,7.17978173]
[1764889496299,4.32500757,139.3,139.27,16.308864]
[1764889496480,5.04500757,139.29,139.27,24.228864]
[1764889496877,0.72,139.28,139.27,24.228864]
[1764889497211,0.72,139.28,139.24,30.43035547]
[1764889497212,5.04500757,139.28,139.26,7.92]
[1764889497784,0.72,139.28,139.26,15.10038484]
[1764889497977,7.17829811,139.31,139.27,7.18029726]
[1764889498179,5.04500757,139.29,139.27,7.18029726]
[1764889502220,0.72,139.28,139.26,7.92]
[1764889502378,4.32500757,139.27,139.22,4.32500757]
[1764889502719,7.8998333,139.28,139.23,7.92]
[1764889502720,4.32500757,139.25,139.23,7.92]
[1764889503075,5.04500757,139.25,139.23,7.92]
[1764889503682,0.72,139.24,139.21,16.408864]
[1764889503887,4.32500757,139.25,139.21,16.408864]
[1764889503888,4.32500757,139.25,139.21,0.1]
[1764889504107,5.04500757,139.26,139.22,0.66]
[1764889504283,5.04500757,139.26,139.23,7.18236012]
[1764889505612,4.32500757,139.26,139.23,7.18236012]
[1764889505915,0.72,139.25,139.23,7.18236012]
[1764889508912,5.04500757,139.25,139.23,7.18236012]
[1764889509578,0.72,139.24,139.23,7.18236012]
[1764889510405,5.04500757,139.27,139.23,7.84236012]
[1764889510578,4.32500757,139.26,139.23,15.76236012]
[1764889510782,5.04500757,139.26,139.23,15.76236012]
[1764889511191,4.32500757,139.26,139.23,33.05826042]
[1764889511402,0.72,139.25,139.23,15.10236012]
[1764889511582,5.04500757,139.25,139.23,15.10236012]
[1764889512379,0.72,139.25,139.23,15.10236012]
[1764889512585,4.32500757,139.26,139.23,15.10236012]
[1764889512784,5.04500757,139.26,139.23,15.10236012]
[1764889514295,5.02500757,139.28,139.24,0.7]
[1764889514703,5.02500757,139.28,139.25,7.18132854]
[1764889515207,5.02500757,139.28,139.25,7.88132854]
[1764889516218,4.32500757,139.28,139.25,7.18132854]
[1764889516511,4.32500757,139.28,139.24,4.32500757]
[1764889516512,0.7,139.27,139.24,7.18184429]
[1764889516697,0.7,139.27,139.24,7.88184429]
[1764889516902,0.7,139.3,139.25,5.02500757]
[1764889517223,15.98863669,139.31,139.26,12.24500757]
[1764889517224,4.32500757,139.31,139.26,12.24500757]
[1764889517393,0.7,139.32,139.28,4.32500757]
[1764889517598,0.7,139.34,139.3,4.32500757]
[1764889517913,4.32500757,139.35,139.31,4.32500757]
[1764889518090,5.02500757,139.36,139.32,7.92]
[1764889518291,5.02500757,139.36,139.32,8.62]
[1764889518492,5.02500757,139.36,139.33,7.17720519]
[1764889518698,0.7,139.36,139.33,7.17720519]
[1764889518898,0.7,139.35,139.33,7.17720519]
[1764889520806,11.50020937,139.37,139.33,7.17720519]
[1764889521121,0.7,139.36,139.33,7.17720519]
[1764889522220,11.50020937,139.37,139.33,7.17720519]
[1764889522221,1e-08,139.37,139.34,0.7]
[1764889522394,0.70000001,139.37,139.34,0.7]
[1764889522812,5.02500758,139.37,139.32,20.12252973]
[1764889523119,4.32500757,139.36,139.32,15.79752216]
[1764889523417,5.02500757,139.36,139.32,15.79752216]
[1764889524323,0.7,139.35,139.32,7.92]
[1764889524491,0.7,139.35,139.32,8.62]
[1764889524697,0.7,139.35,139.32,15.7974309]
[1764889528398,12.2012816,139.35,139.32,15.0974309]
[1764889528614,12.2012816,139.35,139.32,7.92]
[1764889528819,0.7,139.34,139.32,7.92]
[1764889530404,11.50221276,139.33,139.29,16.308864]
[1764889530605,4.32500757,139.33,139.3,7.92]
[1764889530915,5.02500757,139.33,139.3,7.92]
[1764889531232,5.02500757,139.32,139.3,7.92]
[1764889531535,5.02500757,139.32,139.29,16.308864]
[1764889531536,5.02500757,139.32,139.29,7.92]
[1764889531830,0.7,139.31,139.28,7.17962668]
[1764889532925,3.47089923,139.31,139.28,7.17962668]
[1764889533147,2.77089923,139.29,139.24,16.03306167]
[1764889533312,2.77089923,139.29,139.23,2.77089923]
[1764889533313,2.77089923,139.27,139.25,7.92]
[1764889533704,3.47089923,139.27,139.25,7.92]
[1764889534207,0.7,139.26,139.23,15.80205685]
[1764889535106,3.47089923,139.27,139.23,15.80205685]
[1764889535524,3.47089923,139.27,139.24,0.7]
[1764889536335,3.47089923,139.27,139.24,7.88152777]
[1764889536812,2.77089923,139.28,139.24,7.18152777]
[1764889537130,3.47089923,139.29,139.25,0.7]
[1764889537631,0.7,139.28,139.25,0.7]
[1764889538322,0.7,139.28,139.25,7.88120776]
[1764889541824,3.47089923,139.29,139.25,7.88120776]
[1764889542026,3.47089923,139.3,139.26,8.62]
[1764889542535,3.47089923,139.3,139.27,0.7]
[1764889542739,2.77089923,139.31,139.27,0.7]
[1764889543034,3.45089923,139.31,139.27,0.7]
[1764889543621,3.45089923,139.31,139.28,7.17978173]
[1764889544028,3.45089923,139.31,139.28,7.85978173]
[1764889544532,10.6291622,139.31,139.28,7.85978173]
[1764889544706,3.46089923,139.3,139.28,7.17978173]
[1764889546350,3.46089923,139.3,139.27,7.18029726]
[1764889546813,3.46089923,139.3,139.27,7.68029726]
[1764889547223,3.46089923,139.3,139.27,8.36029726]
[1764889547424,2.77089923,139.31,139.28,0.68]
[1764889547631,3.46089923,139.31,139.28,0.68]
[1764889548230,3.46089923,139.31,139.29,7.17926627]
[1764889548427,0.69,139.31,139.29,7.17926627]
[1764889550040,2.77089923,139.32,139.28,7.17978173]
[1764889550236,3.46089923,139.32,139.29,0.68]
[1764889550435,0.69,139.36,139.29,8.6]
[1764889550625,2.77089923,139.35,139.3,2.77089923]
[1764889550819,2.77089923,139.34,139.3,0.68]
[1764889551249,3.46089923,139.34,139.3,0.68]
[1764889551948,0.69,139.34,139.31,7.67804134]
[1764889553643,0.69,139.34,139.31,7.17804134]
[1764889554846,3.46089923,139.34,139.31,7.17804134]
[1764889555353,0.69,139.34,139.3,28.57652736]
[1764889555819,3.46089923,139.34,139.3,25.80562813]
[1764889556946,3.46089923,139.34,139.31,7.67790085]
[1764889557259,0.69,139.34,139.31,8.35790085]
[1764889558137,0.69,139.34,139.31,11.12880008]
[1764889558656,3.46089924,139.37,139.32,11.37089923]
[1764889559025,4.80916754,139.37,139.33,3.45089923]
[1764889559359,4.80916754,139.37,139.34,2.77089923]
[1764889559360,0.69000001,139.37,139.34,2.77089923]
[1764889559529,0.69000001,139.37,139.34,3.45089923]
[1764889560433,0.69000001,139.37,139.35,7.17617509]
[1764889562729,1e-08,139.37,139.35,10.62707432]
[1764889563340,1e-08,139.37,139.36,3.45089923]
[1764889563648,1e-08,139.37,139.36,19.75976323]
[1764889564024,1e-08,139.37,139.36,3.45089923]
[1764889564648,1e-08,139.37,139.36,10.62655939]
[1764889565156,1e-08,139.37,139.36,26.93542339]
[1764889567229,0.2,139.39,139.38,16.308864]
[1764889567428,0.2,139.39,139.38,26.99976323]
[1764889567640,0.2,139.39,139.38,27.67976323]
[1764889568831,0.2,139.39,139.38,34.85439373]
[1764889569162,0.2,139.39,139.38,34.17439373]
[1764889570163,0.2,139.39,139.38,34.85439373]
[1764889572939,0.2,139.39,139.38,32.0834945]
[1764889573142,0.2,139.39,139.38,34.85439373]
[1764889579976,0.2,139.39,139.38,31.4034945]
[1764889580175,0.92,139.39,139.38,31.3834945]
[1764889580549,0.92,139.39,139.37,7.67500765]
[1764889580760,0.72,139.38,139.36,15.07550364]
[1764889581568,0.72,139.38,139.37,7.17514529]
[1764889587080,3.49089923,139.38,139.35,7.17588884]
[1764889587287,0.72,139.37,139.35,7.17588884]
[1764889587660,0.72,139.37,139.36,7.17566016]
[1764889588474,0.72,139.37,139.35,7.17617509]
[1764889591461,3.69089923,139.39,139.35,25.79661283]
[1764889591669,0.72,139.38,139.36,7.9]
[1764889594285,5.04465769,139.38,139.36,7.9]
[1764889594673,0.72,139.37,139.36,7.9]
[1764889595687,0.72,139.37,139.36,15.07563782]
[1764889595999,5.04465769,139.37,139.35,7.17605995]
[1764889596186,4.32465769,139.36,139.34,15.07647392]
[1764889596491,4.32465769,139.35,139.32,7.17750244]
[1764889596685,4.32465769,139.33,139.32,15.07750244]
[1764889597069,5.04465769,139.33,139.32,15.07750244]
[1764889597567,5.04465769,139.33,139.31,7.17802456]
[1764889597767,0.72,139.32,139.31,7.17802456]
[1764889598163,5.04465769,139.35,139.31,7.85802456]
[1764889598385,5.04465769,139.35,139.32,7.9]
[1764889598686,0.72,139.34,139.32,7.9]
[1764889599667,0.72,139.34,139.33,7.17720519]
[1764889600283,4.32465769,139.36,139.33,7.17720519]
[1764889600669,0.72,139.35,139.33,7.17720519]
[1764889601587,7.17484952,139.38,139.34,8.58]
[1764889601588,5.04465769,139.38,139.34,8.58]
[1764889601785,0.72,139.37,139.35,7.17617509]
[1764889602384,4.32465769,139.38,139.36,7.9]
[1764889602385,0.72,139.38,139.36,7.9]
[1764889602967,4.32465769,139.37,139.34,15.07644509]
[1764889603181,5.04465769,139.38,139.34,15.07644509]
[1764889603387,0.65,139.37,139.34,33.72817036]
[1764889603588,0.85,139.39,139.35,0.71]
[1764889603777,0.65,139.38,139.36,15.07566016]
[1764889605874,0.2,139.39,139.37,0.71]
[1764889606585,0.2,139.39,139.38,7.9]
[1764889606972,0.2,139.39,139.38,8.61]
[1764889607168,0.2,139.39,139.38,7.9]
[1764889607493,0.85,139.39,139.38,7.9]
[1764889607873,0.85,139.39,139.38,15.0746305]
[1764889608773,0.2,139.39,139.38,15.0746305]
[1764889610390,0.2,139.39,139.38,15.7846305]
[1764889611094,0.2,139.39,139.38,15.0746305]
[1764889612276,0.2,139.39,139.38,15.7846305]
[1764889617800,0.2,139.39,139.38,20.10928819]
[1764889619076,0.2,139.39,139.38,15.7846305]
[1764889621196,0.2,139.39,139.38,20.10928819]
[1764889621500,0.2,139.39,139.38,20.60928819]
[1764889622704,0.2,139.39,139.38,16.2846305]
[1764889622889,0.2,139.39,139.38,20.60928819]
[1764889623286,0.2,139.39,139.38,36.91815219]
[1764889623600,0.2,139.39,139.38,174.88810865]
[1764889623601,1e-08,139.39,139.38,174.88810865]
[1764889623898,1e-08,139.39,139.38,174.1706456]
[1764889624074,1e-08,139.39,139.38,86.03604299]
[1764889624271,1e-08,139.39,139.38,106.66956468]
[1764889625706,1e-08,139.39,139.38,105.95956468]
[1764889625887,1e-08,139.39,139.38,31.8834945]
[1764889626398,1e-08,139.39,139.38,36.20815219]
[1764889626784,1e-08,139.39,139.38,36.91815219]
[1764889629014,0.65000001,139.39,139.38,7.9]
[1764889630407,0.65000001,139.39,139.38,15.0746305]
[1764889630589,1e-08,139.39,139.38,15.0746305]
[1764889631001,0.65000001,139.39,139.38,15.0746305]
[1764889634107,1e-08,139.39,139.38,15.0746305]
[1764889635590,0.69000001,139.39,139.38,15.0746305]
[1764889639819,1e-08,139.39,139.38,15.7546305]
[1764889639996,1e-08,139.39,139.38,15.0746305]
[1764889642186,0.69000001,139.39,139.38,15.0746305]
[1764889642490,0.69000001,139.39,139.36,7.9]
[1764889642491,5.0146577,139.39,139.36,7.9]
[1764889642691,4.32465769,139.38,139.36,15.07538935]
[1764889642890,5.01465769,139.38,139.36,15.07538935]
[1764889643093,0.69,139.37,139.36,15.07538935]
[1764889643499,5.01465769,139.37,139.36,7.9]
[1764889643907,0.69,139.37,139.36,7.9]
[1764889647691,0.69,139.37,139.36,15.07566016]
[1764889648420,0.69,139.38,139.36,15.07566016]
[1764889664202,1e-08,139.39,139.38,16.308864]
[1764889664411,0.70000001,139.39,139.38,24.208864]
[1764889664617,0.70000001,139.39,139.38,7.9]
[1764889664828,1e-08,139.39,139.38,7.9]
[1764889665537,0.70000001,139.39,139.38,7.9]
[1764889665724,1e-08,139.39,139.38,7.9]
[1764889666235,1e-08,139.39,139.38,15.0746305]
[1764889669612,1e-08,139.39,139.38,18.54248703]
[1764889670117,1e-08,139.39,139.38,26.13513]
[1764889670323,1e-08,139.39,139.38,15.0746305]
[1764889670524,0.2,139.45,139.38,7.9]
[1764889670525,2.76785653,139.41,139.38,7.9]
[1764889670733,7.59407182,139.41,139.38,7.9]
[1764889671730,7.59407182,139.41,139.38,15.0746305]
[1764889672415,4.82621529,139.4,139.38,15.0746305]
[1764889672748,5.52621529,139.4,139.38,15.0746305]
[1764889674137,0.7,139.39,139.38,7.9]
[1764889675620,3.46785653,139.39,139.36,7.17542641]
[1764889675824,2.76785653,139.38,139.36,15.07542641]
[1764889676131,3.46785653,139.38,139.36,15.07542641]
[1764889676330,0.7,139.37,139.36,7.9]
[1764889677832,0.7,139.37,139.36,15.07566016]
[1764889678033,5.53142513,139.38,139.36,15.07566016]
[1764889679336,5.53142513,139.38,139.36,7.9]
[1764889679830,9.94223191,139.39,139.36,7.9]
[1764889680037,0.7,139.37,139.36,7.9]
[1764889680227,0.7,139.38,139.36,7.9]
[1764889681019,2.76785653,139.39,139.36,15.07556686]
[1764889681342,0.7,139.4,139.37,0.7]
[1764889681343,4.83032259,139.4,139.37,0.7]
[1764889681536,5.53032259,139.4,139.37,0.7]
[1764889682131,5.53032259,139.4,139.37,7.87464077]
[1764889683122,7.59817912,139.4,139.37,7.17464077]
[1764889683451,2.76785653,139.38,139.36,7.9]
[1764889683826,0.7,139.37,139.36,7.9]
[1764889684061,3.46785653,139.37,139.34,7.17639587]
[1764889684219,3.46785653,139.37,139.34,15.07639587]
[1764889684424,0.7,139.37,139.35,7.1760567]
[1764889685136,0.7,139.37,139.34,15.77645434]
[1764889685642,0.7,139.37,139.34,7.9]
[1764889685643,2.76785653,139.36,139.34,7.9]
[1764889685818,2.76785653,139.35,139.33,7.9]
[1764889686019,3.46785653,139.35,139.31,7.87808152]
[1764889686216,3.46785653,139.34,139.32,7.17756351]
[1764889686720,3.46785653,139.34,139.31,15.77801612]
[1764889687632,9.94483074,139.34,139.31,7.9]
[1764889687837,0.7,139.33,139.3,15.07861227]
[1764889688038,3.46785653,139.34,139.31,7.87821285]
[1764889688439,8.29621788,139.34,139.31,7.87821285]
[1764889689029,2.76785653,139.33,139.31,7.87821285]
[1764889690858,3.46785653,139.33,139.31,7.17821285]
[1764889696352,0.66,139.32,139.3,15.07855882]
[1764889696654,3.42785653,139.32,139.3,7.9]
[1764889697363,3.42785653,139.32,139.3,15.07873751]
[1764889697873,2.76785653,139.33,139.3,15.76873751]
[1764889698167,3.42785653,139.33,139.3,15.76873751]
[1764889701168,0.66,139.32,139.3,7.9]
[1764889701411,3.42785653,139.32,139.3,7.9]
[1764889702362,3.42785653,139.32,139.3,15.07866463]
[1764889703956,3.42785653,139.35,139.31,0.69]
[1764889704155,136.94733158,139.37,139.32,7.9]
[1764889704156,0.66,139.37,139.32,7.9]
[1764889704372,20.7089842,139.38,139.33,2.76785653]
[1764889704551,20.7089842,139.38,139.33,3.45785653]
[1764889704552,3.42785653,139.38,139.33,3.45785653]
[1764889704758,2.76785653,139.37,139.34,0.69]
[1764889704952,3.42785653,139.37,139.34,0.69]
[1764889705361,2.76785653,139.37,139.34,0.69]
[1764889705876,2.76785653,139.37,139.34,7.86648968]
[1764889706049,3.42785653,139.37,139.34,7.86648968]
[1764889706857,3.42785653,139.36,139.34,7.17648968]
[1764889707678,2.76785653,139.36,139.34,7.17648968]
[1764889708363,2.76785653,139.36,139.34,7.86648968]
[1764889708760,3.42785653,139.37,139.34,7.86648968]
[1764889709079,3.42785653,139.37,139.34,7.17648968]
[1764889710461,10.60303158,139.37,139.34,7.17648968]
[1764889711483,3.42785653,139.36,139.33,7.8669962]
[1764889711660,2.76785653,139.35,139.32,15.07737049]
[1764889711860,3.42785653,139.35,139.32,15.76737049]
[1764889712367,4.98706032,139.35,139.32,15.76737049]
[1764889712558,4.32706032,139.35,139.33,0.69]
[1764889712756,4.32706032,139.36,139.33,7.86719506]
[1764889713376,4.98706032,139.36,139.33,7.86719506]
[1764889713882,12.16294933,139.36,139.33,7.86719506]
[1764889718179,12.16294933,139.36,139.33,0.69]
[1764889723686,11.50239834,139.37,139.33,7.86687261]
[1764889723910,11.5018776,139.38,139.33,7.86687261]
[1764889724095,0.71,139.37,139.34,0.68]
[1764889724461,0.71,139.37,139.34,7.8562706]
[1764889725765,5.03706032,139.37,139.34,7.8562706]
[1764889725966,4.32706032,139.35,139.32,15.75744821]
[1764889726370,5.03706032,139.35,139.32,15.75744821]
[1764889727099,5.03706032,139.35,139.31,15.7581715]
[1764889727100,5.03706032,139.34,139.31,15.7581715]
[1764889729004,7.17619705,139.35,139.31,15.0781715]
[1764889729306,5.03706032,139.35,139.32,0.68]
[1764889729507,9.86502734,139.35,139.32,0.68]
[1764889731433,17.04127482,139.35,139.32,0.68]
[1764889731611,12.2133078,139.35,139.32,0.68]
[1764889736710,0.71,139.34,139.32,0.68]
[1764889737296,12.2133078,139.35,139.32,0.68]
[1764889737495,11.5033078,139.35,139.32,0.68]
[1764889737694,12.2133078,139.35,139.32,0.68]
[1764889741912,12.2133078,139.35,139.32,7.85761623]
[1764889742120,4.32706032,139.36,139.33,0.68]
[1764889742307,9.1571833,139.36,139.33,0.68]
[1764889742620,9.8671833,139.36,139.33,0.68]
[1764889742819,5.03706032,139.36,139.33,0.68]
[1764889743231,9.86718284,139.36,139.33,7.85683653]
[1764889744203,4.83012252,139.35,139.33,7.85683653]
[1764889744419,9.86718284,139.36,139.33,7.85683653]
[1764889745027,4.83012252,139.35,139.33,7.85683653]
[1764889745516,9.86718284,139.35,139.33,0.68]
[1764889745823,9.15718284,139.35,139.33,0.68]
[1764889747624,0.71,139.38,139.33,7.8571362]
[1764889747800,9.87055384,139.37,139.33,7.8571362]
[1764889748000,5.03706032,139.37,139.34,0.68]
[1764889748298,4.32706032,139.35,139.32,7.17756181]
[1764889748722,5.03706032,139.34,139.32,7.17756181]
[1764889749515,5.03706032,139.34,139.32,7.85756181]
[1764889750022,5.03706032,139.34,139.32,7.17756181]
[1764889751318,9.8728719,139.33,139.29,16.988864]
[1764889751509,9.1628719,139.32,139.29,15.75899213]
[1764889751821,4.83581158,139.31,139.29,15.75899213]
[1764889752229,5.54514693,139.31,139.29,15.07899213]
[1764889752412,5.54514693,139.31,139.29,15.75899213]
[1764889752920,4.99706032,139.3,139.29,7.9]
[1764889753119,4.99706032,139.3,139.25,17.018864]
[1764889753442,4.32706032,139.28,139.25,15.79109867]
[1764889753618,9.16048928,139.28,139.25,15.79109867]
[1764889753944,9.83048928,139.28,139.25,15.79109867]
[1764889754108,4.99706032,139.28,139.25,15.79109867]
[1764889754307,4.99706032,139.28,139.26,0.71]
[1764889754520,4.99706032,139.28,139.25,15.08109867]
[1764889754709,4.99706032,139.28,139.25,15.79109867]
[1764889755610,4.99706032,139.28,139.26,7.1807605]
[1764889755805,4.99706032,139.28,139.26,7.8907605]
[1764889756541,4.32706032,139.28,139.26,7.8907605]
[1764889759036,4.99706032,139.28,139.26,7.1807605]
[1764889761325,4.99706032,139.28,139.26,7.8907605]
[1764889762932,4.32706032,139.28,139.26,7.8907605]
[1764889766213,4.99706032,139.27,139.25,15.08110965]
[1764889767216,4.32706032,139.27,139.25,15.79110965]
[1764889768533,4.32706032,139.27,139.25,15.08110965]
[1764889768834,4.99706032,139.27,139.25,15.08110965]
[1764889769135,4.32706032,139.27,139.25,15.79110965]
[1764889769716,4.99706032,139.26,139.24,0.1]
[1764889770042,4.32706032,139.25,139.24,0.1]
[1764889770215,4.99706032,139.25,139.24,0.1]
[1764889770819,13.80700524,139.25,139.24,0.1]
[1764889771824,37.29719778,139.25,139.24,0.1]
[1764889772130,42.10974106,139.25,139.24,0.1]
[1764889774132,37.29719778,139.25,139.24,0.1]
[1764889774636,35.74522756,139.25,139.24,0.1]
[1764889777638,40.54559689,139.25,139.24,0.1]
[1764889778337,35.74522756,139.25,139.24,0.1]
[1764889779720,2.7750901,139.25,139.24,0.81]
[1764889779922,2.7750901,139.25,139.24,0.1]
[1764889784428,19.44636356,139.25,139.24,0.1]
[1764889784649,43.65522756,139.25,139.24,0.1]
[1764889790154,48.45746762,139.25,139.24,0.1]
[1764889791531,25.11880892,139.23,139.22,0.1]
[1764889791739,38.56898912,139.23,139.22,0.1]
[1764889791932,39.24898912,139.23,139.22,0.1]
[1764889792544,46.43134924,139.23,139.22,0.1]
[1764889793260,51.23991977,139.23,139.22,0.1]
[1764889798157,51.23991977,139.23,139.21,0.1]
[1764889798158,59.56519007,139.23,139.21,0.1]
[1764889798364,17.07360555,139.22,139.21,0.1]
[1764889798657,17.07360555,139.22,139.2,0.1]
[1764889798862,24.97360555,139.21,139.2,0.1]
[1764889800775,32.15699754,139.21,139.2,0.1]
[1764889800949,31.47699754,139.21,139.2,0.1]
[1764889801366,32.15699754,139.21,139.2,0.1]
[1764889803163,66.42434153,139.21,139.18,0.1]
[1764889803361,16.308864,139.19,139.18,0.1]
[1764889803549,40.60246955,139.19,139.18,0.1]
[1764889804064,4.80857053,139.19,139.18,0.78]
[1764889804267,2.7750901,139.19,139.18,0.78]
[1764889804464,7.58366063,139.19,139.18,0.78]
[1764889804947,2.7750901,139.19,139.18,0.78]
[1764889805456,9.95951426,139.19,139.18,0.78]
[1764889807875,18.76945918,139.19,139.18,0.1]
[1764889808060,32.16453274,139.19,139.18,0.1]
[1764889808577,8.80994492,139.18,139.16,0.1]
[1764889808778,19.17519868,139.17,139.16,0.1]
[1764889808993,24.98010858,139.17,139.16,0.1]
[1764889809149,44.06406268,139.17,139.16,0.1]
[1764889810254,7.18597298,139.16,139.15,0.1]
[1764889810456,18.23122674,139.16,139.15,0.1]
[1764889811188,27.04117166,139.16,139.15,0.1]
[1764889811780,35.36644196,139.16,139.15,0.1]
[1764889813576,35.36644196,139.16,139.14,0.1]
[1764889813779,16.21016366,139.15,139.14,0.1]
[1764889814281,23.39665305,139.15,139.14,0.1]
[1764889817288,31.50659797,139.15,139.14,0.81]
[1764889817887,31.50659797,139.15,139.14,0.1]
[1764889820091,26.69152441,139.15,139.14,0.1]
[1764889820392,26.69152441,139.15,139.14,0.81]
[1764889821289,26.69152441,139.15,139.14,0.1]
[1764889822373,27.41152441,139.15,139.14,0.1]
[1764889822575,27.41152441,139.15,139.11,0.1]
[1764889822576,25.11880892,139.12,139.11,0.1]
[1764889822781,35.81389902,139.12,139.1,0.1]
[1764889822972,0.72,139.11,139.1,0.1]
[1764889823381,35.81389902,139.12,139.1,0.1]
[1764889823579,0.72,139.11,139.1,0.1]
[1764889823788,3.4950901,139.11,139.1,0.1]
[1764889824298,12.30503502,139.11,139.1,0.1]
[1764889824468,19.49359083,139.11,139.1,0.1]
[1764889825490,8.80994492,139.07,139.06,0.81]
[1764889825675,11.58503502,139.07,139.06,0.81]
[1764889826794,18.77565844,139.07,139.06,0.81]
[1764889827498,18.77565844,139.07,139.06,0.1]
[1764889828381,26.69565844,139.07,139.06,0.1]
[1764889829371,27.41565844,139.07,139.06,0.1]
[1764889829570,26.69565844,139.07,139.06,0.1]
[1764889831099,27.41565844,139.07,139.06,0.1]
[1764889831274,26.69565844,139.07,139.06,0.1]
[1764889832889,109.89030695,139.08,139.06,0.81]
[1764889836007,7.18824526,139.12,139.07,2.7750901]
[1764889836191,9.96333536,139.12,139.08,2.7750901]
[1764889836385,9.96333536,139.12,139.08,4.34148501]
[1764889836386,11.52973027,139.12,139.08,4.34148501]
[1764889836586,11.52973027,139.12,139.09,0.71]
[1764889838104,4.34148501,139.1,139.09,0.71]
[1764889839484,20.34030731,139.11,139.09,0.71]
[1764889841005,15.9988223,139.11,139.09,0.71]
[1764889841602,20.34030731,139.11,139.09,0.71]
[1764889846010,4.34148501,139.1,139.08,0.66]
[1764889846307,13.15142993,139.09,139.07,0.66]
[1764889846607,13.15142993,139.08,139.07,0.66]
[1764889847692,20.34153634,139.08,139.07,0.66]
[1764889849005,20.34153634,139.08,139.06,0.76]
[1764889849201,4.34148501,139.07,139.06,0.76]
[1764889850803,11.53210843,139.07,139.06,0.76]
[1764889854518,20.34205335,139.07,139.06,0.1]
[1764889854913,21.03205335,139.07,139.06,0.1]
[1764889858018,25.86455956,139.07,139.06,0.1]
[1764889860718,12.02312963,139.07,139.06,0.76]
[1764889860922,7.19031842,139.08,139.06,0.76]
[1764889861205,16.36252618,139.08,139.06,0.76]
[1764889861418,7.19031842,139.08,139.06,0.76]
[1764889861621,4.34148501,139.07,139.06,0.76]
[1764889863128,7.19031842,139.08,139.06,0.76]
[1764889863312,4.34148501,139.07,139.06,0.76]
[1764889863899,11.53180343,139.08,139.06,0.76]
[1764889865507,11.53123788,139.09,139.06,0.76]
[1764889865703,7.92,139.1,139.06,12.29232046]
[1764889865704,7.18921536,139.1,139.06,12.29232046]
[1764889866023,16.36393638,139.1,139.06,7.95083545]
[1764889866215,4.83323601,139.09,139.07,0.66]
[1764889867218,11.53070037,139.1,139.07,0.66]
[1764889868318,11.53070037,139.1,139.07,7.85060524]
[1764889868812,11.53070037,139.1,139.08,0.66]
[1764889870509,4.34148501,139.13,139.08,12.19157844]
[1764889870710,9.17543251,139.12,139.08,0.66]
[1764889870911,4.34148501,139.11,139.09,0.66]
[1764889871530,4.8339475,139.12,139.09,0.66]
[1764889871741,9.17543251,139.12,139.09,0.66]
[1764889872240,12.02280474,139.11,139.09,0.66]
[1764889872538,4.34148501,139.13,139.09,0.66]
[1764889872735,9.17475122,139.13,139.09,0.66]
[1764889873619,16.36242049,139.13,139.09,7.8495801]
[1764889873818,4.83326621,139.12,139.09,7.8495801]
[1764889874040,4.83326621,139.12,139.1,0.7]
[1764889874743,11.52915428,139.13,139.1,0.7]
[1764889875044,11.52915428,139.13,139.1,7.88904624]
[1764889875421,11.52915428,139.13,139.1,0.7]